bitfinex/quotes_ETHUSD_20250914
["timestamp","ask_amount","ask_price","bid_price","bid_amount"]
[1757887881567,0.108,4617.8,4617.7,2.48137548]
[1757887881777,3.728,4617.8,4617.7,2.48137548]
[1757887881978,3.728,4617.8,4617.7,2.16557548]
[1757887882550,3.73,4617.8,4617.7,2.16557548]
[1757887883088,3.73,4617.8,4617.7,2.94197548]
[1757887883301,0.002,4617.8,4617.7,3.94839904]
[1757887888861,0.002,4617.8,4617.7,3.97005484]
[1757887889598,0.002,4617.8,4617.7,3.94839904]
[1757887892682,0.002,4617.8,4617.7,3.97005484]
[1757887894115,0.002,4617.8,4617.7,3.94839904]
[1757887894296,0.002,4617.8,4617.7,3.97005484]
[1757887894500,0.002,4617.8,4617.7,3.94839904]
[1757887894712,0.002,4617.8,4617.7,8.38105484]
[1757887895007,0.002,4617.8,4617.7,11.35939904]
[1757887899826,0.002,4617.8,4617.7,7.28979904]
[1757887900116,0.002,4617.8,4617.7,10.90879904]
[1757887900619,0.002,4617.8,4617.7,11.34719904]
[1757887902381,0.002,4617.8,4617.7,10.90879904]
[1757887904125,0.002,4617.8,4617.7,6.49779904]
[1757887904415,0.002,4617.8,4617.7,9.65619904]
[1757887904724,0.002,4617.8,4617.7,10.14699904]
[1757887908107,0.002,4617.8,4617.7,10.58539904]
[1757887912335,0.002,4617.8,4617.7,10.14699904]
[1757887912519,0.002,4617.8,4617.7,10.58539904]
[1757887913924,0.3082,4617.8,4617.7,9.33939904]
[1757887914131,0.002,4617.8,4617.7,9.33939904]
[1757887914311,0.002,4617.8,4617.7,9.63769904]
[1757887914640,0.002,4617.8,4617.7,10.10969904]
[1757887916811,0.002,4617.8,4617.7,10.56309904]
[1757887917806,0.002,4617.8,4617.7,10.10969904]
[1757887918006,0.002,4617.8,4617.7,10.56309904]
[1757887920641,0.3164,4617.8,4617.7,5.72139904]
[1757887920855,0.7723,4617.8,4617.7,9.33939904]
[1757887921028,0.3164,4617.8,4617.7,5.72139904]
[1757887921234,0.7723,4617.8,4617.7,9.33939904]
[1757887921851,0.002,4617.8,4617.7,10.11079904]
[1757887922153,0.002,4617.8,4617.7,10.54009904]
[1757887922530,0.002,4617.8,4617.7,10.11079904]
[1757887924152,0.002,4617.8,4617.7,9.33939904]
[1757887924353,0.002,4617.8,4617.7,5.16557548]
[1757887924354,0.7723,4617.8,4617.7,5.16557548]
[1757887924961,1.1537,4617.8,4617.7,5.16557548]
[1757887927358,0.7723,4617.8,4617.7,5.16557548]
[1757887935442,1.1537,4617.8,4617.7,2.16558026]
[1757887935636,1.37707,4617.8,4617.7,2.16558026]
[1757887936879,1.37707,4617.8,4617.6,2.16562276]
[1757887937191,0.8373,4617.7,4617.6,2.16562276]
[1757887937348,1.1517,4617.7,4617.6,2.16562276]
[1757887939269,1.1517,4617.7,4617.0,3.725]
[1757887939535,0.108,4617.5,4616.8,0.109]
[1757887939667,0.108,4617.5,4617.4,2.16572096]
[1757887939977,0.4224,4617.5,4617.4,2.16572096]
[1757887940341,0.8783,4617.5,4616.9,3.0]
[1757887940546,0.4559,4617.4,4617.3,2.16576523]
[1757887940756,0.108,4617.3,4616.9,2.16595551]
[1757887941085,0.5639,4617.3,4617.1,2.16586073]
[1757887941251,0.7703,4617.2,4617.1,2.16586073]
[1757887944186,0.108,4617.3,4617.2,2.16581477]
[1757887944389,0.108,4617.3,4617.2,2.63111477]
[1757887944587,0.108,4617.3,4617.2,2.93721477]
[1757887945596,0.108,4617.3,4617.2,2.16581477]
[1757887946698,0.4224,4617.3,4617.2,2.16581477]
[1757887947584,0.4224,4617.3,4616.8,0.001]
[1757887947898,0.4559,4617.2,4617.0,2.16590859]
[1757887948088,0.3144,4617.1,4617.0,2.16590859]
[1757887948285,0.108,4617.3,4617.2,2.16581477]
[1757887948794,0.108,4617.3,4617.2,2.93721477]
[1757887949797,0.108,4617.3,4617.2,2.16581477]
[1757887951308,0.108,4617.3,4617.2,2.96011477]
[1757887951675,0.108,4617.3,4617.2,2.66331477]
[1757887955491,0.108,4617.3,4617.2,2.16581477]
[1757887957509,0.108,4617.3,4617.2,2.96011477]
[1757887957710,4.059,4617.7,4617.6,2.16562716]
[1757887958013,4.059,4617.7,4617.6,3.39072716]
[1757887959282,0.108,4618.0,4617.7,2.16558026]
[1757887959486,3.616,4617.9,4617.7,3.11553606]
[1757887959786,3.616,4617.9,4617.7,3.41233606]
[1757887960313,0.108,4618.0,4617.7,3.41233606]
[1757887960495,3.616,4617.9,4617.7,4.18670202]
[1757887961819,0.002,4618.3,4617.7,4.27304622]
[1757887961993,0.002,4618.3,4617.7,7.91070202]
[1757887962194,0.002,4618.3,4617.7,7.88904622]
[1757887963889,0.002,4618.3,4617.7,3.84224622]
[1757887964083,0.4451,4618.3,4617.7,7.45824622]
[1757887964516,0.002,4618.3,4617.7,7.88904622]
[1757887965288,0.002,4618.3,4617.7,7.45824622]
[1757887965487,0.002,4618.3,4617.7,7.52824622]
[1757887965990,0.002,4618.3,4617.7,3.91224622]
[1757887966910,0.4451,4618.3,4617.7,3.91224622]
[1757887969224,0.002,4618.3,4617.7,3.91224622]
[1757887969430,0.002,4618.3,4617.7,4.34304622]
[1757887970717,0.002,4618.3,4617.7,7.95804622]
[1757887973191,0.002,4619.5,4619.4,2.1647833]
[1757887973437,0.318,4619.5,4619.4,2.2347833]
[1757887974528,0.002,4619.5,4619.4,2.2347833]
[1757887975429,0.295,4619.5,4619.4,2.2347833]
[1757887976326,0.7459,4619.5,4619.4,2.2347833]
[1757887976928,1.1273,4619.5,4619.4,2.2347833]
[1757887977098,1.25103,4619.5,4619.4,2.2347833]
[1757887978318,0.86963,4619.5,4619.4,2.2347833]
[1757887980499,0.86963,4619.5,4619.4,0.07]
[1757887980725,1.25103,4619.5,4619.4,0.07]
[1757887985112,1.57395492,4619.5,4619.4,0.07]
[1757887986651,3.73869136,4619.5,4619.4,0.07]
[1757887986853,1.57395492,4619.5,4619.4,0.07]
[1757887987628,3.73869136,4619.5,4619.4,0.07]
[1757887987829,6.57475935,4619.5,4619.4,0.07]
[1757887988030,10.19075935,4619.5,4619.4,0.07]
[1757887989251,8.02602291,4619.5,4619.4,0.07]
[1757887989829,4.35765492,4619.5,4619.4,0.07]
[1757887990319,4.15582684,4619.5,4619.4,0.07]
[1757887990515,4.03473,4619.5,4619.4,0.07]
[1757887990716,4.15597592,4619.5,4619.4,0.07]
[1757887992638,4.15497592,4619.5,4619.4,0.07]
[1757887997651,0.53997592,4619.5,4619.4,2.5377833]
[1757887997830,3.617,4619.5,4619.4,3.4324833]
[1757887999539,0.002,4619.5,4619.4,3.4324833]
[1757888003772,0.002,4619.5,4619.4,3.45413113]
[1757888009977,0.002,4619.5,4619.4,2.9958833]
[1757888010181,0.002,4619.5,4619.4,3.88415848]
[1757888010552,0.002,4619.5,4619.4,4.35675848]
[1757888013089,0.002,4619.5,4619.4,4.37840631]
[1757888014070,0.002,4619.5,4619.4,4.35675848]
[1757888015073,0.002,4619.5,4619.4,3.42605848]
[1757888015594,0.002,4619.5,4619.4,3.91135848]
[1757888016192,0.002,4619.5,4619.4,4.38395848]
[1757888027612,0.002,4619.5,4619.4,3.91135848]
[1757888027814,0.002,4619.5,4619.4,3.0230833]
[1757888030120,0.2875,4619.5,4619.4,2.2347833]
[1757888030288,3.93396799,4619.5,4619.4,0.07]
[1757888030714,4.055418,4619.5,4619.4,0.07]
[1757888030879,4.4611598,4619.5,4619.4,0.07]
[1757888031084,4.66394011,4619.5,4619.4,0.07]
[1757888031326,1.82787212,4619.5,4619.4,0.07]
[1757888031483,3.93396799,4619.5,4619.4,0.07]
[1757888031684,7.668418,4619.5,4619.4,0.07]
[1757888031883,7.87119831,4619.5,4619.4,0.07]
[1757888035644,4.22473032,4619.5,4619.4,0.07]
[1757888035935,4.22473032,4619.5,4619.4,2.2347833]
[1757888036092,4.02195001,4619.5,4619.4,2.2347833]
[1757888036521,3.9005,4619.5,4619.4,2.2347833]
[1757888036929,3.615,4619.5,4619.4,2.2347833]
[1757888037425,3.615,4619.5,4619.4,3.0003833]
[1757888037599,3.723,4619.5,4619.4,3.0003833]
[1757888039604,3.723,4619.5,4619.4,3.4481833]
[1757888040338,3.615,4619.5,4619.4,3.4481833]
[1757888043357,0.002,4619.5,4619.4,4.02028786]
[1757888046838,0.002,4619.5,4619.4,4.12828786]
[1757888047832,0.002,4619.5,4619.4,4.14993569]
[1757888049244,0.002,4619.5,4619.4,4.12828786]
[1757888050937,0.002,4619.5,4619.4,3.68048786]
[1757888051344,0.002,4619.5,4619.4,4.12828786]
[1757888051841,0.002,4619.5,4619.4,4.14993569]
[1757888052048,0.002,4619.5,4619.4,4.12828786]
[1757888053047,0.002,4619.5,4619.4,4.14993569]
[1757888063580,0.002,4620.0,4619.9,2.16454901]
[1757888063879,0.002,4620.0,4619.9,2.2561945]
[1757888064064,0.002,4620.0,4619.9,6.5891945]
[1757888064271,0.002,4620.0,4619.9,6.68905638]
[1757888070296,0.002,4620.7,4620.4,2.16431477]
[1757888070483,0.002,4620.7,4620.4,2.23431477]
[1757888070678,0.002,4620.7,4620.4,6.12411477]
[1757888071069,0.002,4620.7,4620.4,6.21075703]
[1757888071284,0.002,4620.7,4620.4,6.68075703]
[1757888071601,0.002,4620.7,4620.4,7.20675937]
[1757888073397,0.082,4620.8,4620.6,2.16422109]
[1757888073586,0.082,4620.8,4620.7,5.79781599]
[1757888073794,0.082,4620.8,4620.7,6.66597425]
[1757888074790,0.082,4620.8,4620.7,7.12407425]
[1757888074972,0.082,4620.8,4620.7,7.69617881]
[1757888075168,0.082,4620.8,4620.7,7.76617881]
[1757888075396,0.3951,4620.8,4620.7,6.98437881]
[1757888075597,0.8512,4620.8,4620.7,2.80027425]
[1757888075898,0.8512,4620.8,4620.7,5.95317425]
[1757888077684,0.8512,4620.8,4620.7,2.34217425]
[1757888078484,0.3951,4620.8,4620.7,2.34217425]
[1757888078996,0.8512,4620.8,4620.7,2.34217425]
[1757888080290,0.082,4620.8,4620.7,3.14561599]
[1757888080472,0.082,4620.8,4620.7,4.97228289]
[1757888080671,0.082,4620.8,4620.7,4.48064115]
[1757888081072,0.082,4620.8,4620.7,3.69884115]
[1757888081304,0.082,4620.8,4620.7,3.72048289]
[1757888081998,0.082,4620.8,4620.7,4.50228289]
[1757888082225,0.082,4620.8,4620.7,4.48064115]
[1757888082403,0.082,4620.8,4620.7,4.95064115]
[1757888082597,0.082,4620.8,4620.7,8.56164115]
[1757888083101,0.082,4620.8,4620.7,8.09164115]
[1757888084105,0.082,4620.8,4620.7,8.17828135]
[1757888085919,0.082,4620.8,4620.7,8.64828135]
[1757888086135,0.002,4621.0,4620.9,2.16408059]
[1757888086319,0.002,4621.0,4620.9,5.79672139]
[1757888086626,0.002,4621.0,4620.9,7.24589805]
[1757888086827,0.002,4621.0,4620.9,7.89567977]
[1757888087025,0.002,4621.0,4620.9,10.96567977]
[1757888090730,0.002,4621.0,4620.9,10.49567977]
[1757888092131,0.3151,4621.0,4620.9,6.10287977]
[1757888092300,1.1526,4621.0,4620.9,2.23408059]
[1757888094026,0.7712,4621.0,4620.9,2.23408059]
[1757888096053,0.002,4621.0,4620.9,2.23408059]
[1757888096224,0.4894,4621.4,4620.9,2.23408059]
[1757888096225,0.002,4621.8,4621.7,2.16370599]
[1757888096550,0.002,4621.8,4621.7,6.04572924]
[1757888096849,0.2939,4621.8,4621.7,2.54372924]
[1757888097155,0.746,4621.8,4621.7,2.99582924]
[1757888101659,0.2939,4621.8,4621.7,2.99582924]
[1757888102173,0.7265,4621.8,4621.7,2.88782924]
[1757888102335,1.1079,4621.8,4621.7,2.23370599]
[1757888102535,1.32669,4621.8,4621.7,0.07]
[1757888102732,11.93265107,4621.8,4621.7,0.07]
[1757888102957,12.72280092,4621.8,4621.7,0.07]
[1757888108475,16.51480092,4621.8,4621.7,0.07]
[1757888109279,16.51472585,4621.8,4621.7,0.07]
[1757888111874,16.06928139,4621.8,4621.7,0.07]
[1757888113088,9.48418942,4621.8,4621.7,0.07]
[1757888113257,15.54647647,4621.8,4621.7,0.07]
[1757888113986,12.30020326,4621.8,4621.7,0.07]
[1757888114692,12.26648334,4621.8,4621.7,0.07]
[1757888115191,11.83388334,4621.8,4621.7,0.07]
[1757888115354,11.83388334,4621.8,4621.7,0.3679]
[1757888115355,1.98733591,4621.8,4621.7,0.3679]
[1757888115560,1.664,4621.8,4621.7,1.2909]
[1757888115779,5.274,4621.8,4621.7,1.2909]
[1757888115985,5.39526126,4621.8,4621.7,3.45460599]
[1757888116191,1.78526126,4621.8,4621.7,3.45460599]
[1757888116378,5.274,4621.8,4621.7,3.45460599]
[1757888117068,1.664,4621.8,4621.7,3.45460599]
[1757888117268,5.274,4621.8,4621.7,3.45460599]
[1757888120202,5.274,4621.8,4621.7,3.00020599]
[1757888120500,5.274,4621.8,4621.7,3.45460599]
[1757888120710,5.274,4621.8,4621.7,0.3679]
[1757888120894,5.5752,4621.8,4621.7,0.07]
[1757888121404,5.5752,4621.8,4621.7,2.23370599]
[1757888121611,5.274,4621.8,4621.7,2.23370599]
[1757888122112,5.274,4621.8,4621.7,2.53160599]
[1757888122469,5.274,4621.8,4621.7,3.00020599]
[1757888123073,5.274,4621.8,4621.7,0.8365]
[1757888123382,5.274,4621.8,4621.7,3.00020599]
[1757888123598,5.274,4621.8,4621.7,0.8365]
[1757888123917,5.274,4621.8,4621.7,3.00020599]
[1757888124115,8.53027525,4621.8,4621.7,0.07]
[1757888124316,9.49027525,4621.8,4621.7,0.07]
[1757888125139,6.22381782,4621.8,4621.7,0.07]
[1757888125435,5.39521782,4621.8,4621.7,0.07]
[1757888126123,5.39521782,4621.8,4621.7,3.00020599]
[1757888126329,5.39521782,4621.8,4621.7,3.45460599]
[1757888126686,5.39521782,4621.8,4621.7,0.8365]
[1757888126992,5.39521782,4621.8,4621.7,0.07]
[1757888127596,5.69641782,4621.8,4621.7,0.07]
[1757888128691,9.53251703,4621.8,4621.7,0.07]
[1757888128919,12.27975681,4621.8,4621.7,0.07]
[1757888129128,13.39567742,4621.8,4621.7,0.07]
[1757888130734,10.85061824,4621.8,4621.7,0.07]
[1757888130895,13.01427742,4621.8,4621.7,0.07]
[1757888133265,3.97416081,4621.8,4621.7,0.07]
[1757888133448,5.69541782,4621.8,4621.7,0.07]
[1757888133652,5.98425213,4621.8,4621.7,0.07]
[1757888133833,6.45023194,4621.8,4621.7,0.07]
[1757888136235,6.45046039,4621.8,4621.7,0.07]
[1757888136854,8.98311782,4621.8,4621.7,0.07]
[1757888137057,10.0977898,4621.8,4621.7,0.07]
[1757888137236,10.3842898,4621.8,4621.7,0.07]
[1757888138145,10.3852898,4621.8,4621.7,0.07]
[1757888139158,10.0987898,4621.8,4621.7,0.838]
[1757888139361,10.0987898,4621.8,4621.7,0.3619]
[1757888139544,2.54026039,4621.8,4621.7,1.28]
[1757888139749,5.274,4621.8,4621.7,3.44370599]
[1757888140059,5.59762687,4621.8,4621.7,3.44370599]
[1757888143337,5.39544627,4621.8,4621.7,3.00170599]
[1757888143531,5.39544627,4621.8,4621.7,3.44370599]
[1757888145859,5.39544627,4621.8,4621.7,4.00445604]
[1757888146202,3.612,4621.8,4621.7,4.00445604]
[1757888146412,3.612,4621.8,4621.7,4.65415474]
[1757888146413,0.002,4621.8,4621.7,4.65415474]
[1757888156388,0.002,4621.8,4621.7,4.00445604]
[1757888158921,0.002,4621.8,4621.7,4.22802949]
[1757888159831,0.002,4621.8,4621.7,7.22802949]
[1757888160035,0.002,4621.8,4621.7,7.99839244]
[1757888160394,0.002,4621.8,4621.7,8.08500674]
[1757888160935,0.002,4621.8,4621.7,8.19300674]
[1757888161108,0.002,4623.2,4622.2,2.16347193]
[1757888161316,0.002,4623.2,4622.9,0.108]
[1757888161515,0.002,4623.2,4623.1,2.16305076]
[1757888162238,0.002,4623.2,4623.1,2.18468126]
[1757888162430,0.002,4623.2,4623.1,2.16305076]
[1757888164620,0.002,4623.2,4623.1,7.77153203]
[1757888164976,0.002,4623.2,4623.1,4.05900801]
[1757888165246,0.002,4623.2,4623.1,7.70063851]
[1757888165546,0.002,4623.2,4623.1,7.88042589]
[1757888165914,0.002,4623.2,4623.1,7.67900801]
[1757888167547,0.002,4623.8,4623.4,2.16288801]
[1757888167735,0.002,4623.8,4623.5,0.45421783]
[1757888167935,0.002,4623.8,4623.6,0.302]
[1757888168339,0.002,4623.8,4623.6,1.222]
[1757888168521,0.002,4623.8,4623.6,3.38481685]
[1757888172663,0.002,4624.2,4623.6,3.38481685]
[1757888172664,0.002,4624.2,4623.7,2.16277007]
[1757888172868,0.002,4624.2,4623.8,4.47179537]
[1757888173067,0.002,4624.2,4624.1,0.302]
[1757888173250,0.002,4624.2,4624.1,2.46458298]
[1757888173459,1e-08,4624.6,4624.5,2.16239593]
[1757888173669,1e-08,4624.6,4624.5,2.59488209]
[1757888173963,0.29650001,4624.6,4624.5,2.59488209]
[1757888174765,0.29650001,4624.6,4624.5,2.70288209]
[1757888175760,0.73480001,4624.6,4624.2,2.16253622]
[1757888176065,0.78590001,4624.6,4624.1,0.07]
[1757888176271,0.3814,4624.5,4624.1,0.07]
[1757888176477,0.8197,4624.5,4624.4,2.16244145]
[1757888176656,1.1162,4624.5,4624.4,2.16244145]
[1757888177979,0.7348,4624.5,4624.4,2.16244145]
[1757888178154,1.1162,4624.5,4624.4,2.16244269]
[1757888179271,1.1162,4624.5,4624.4,2.23244269]
[1757888180781,0.7348,4624.5,4624.4,2.23244269]
[1757888182680,0.7348,4624.5,4624.4,0.07]
[1757888182844,1.24662,4624.5,4624.4,0.07]
[1757888183052,3.40901593,4624.5,4624.4,0.07]
[1757888183271,7.03501593,4624.5,4624.4,0.07]
[1757888183479,7.15587926,4624.5,4624.4,0.07]
[1757888183665,7.35741969,4624.5,4624.4,0.07]
[1757888183885,10.35741969,4624.5,4624.4,0.07]
[1757888185272,10.35772935,4624.5,4624.4,0.07]
[1757888185816,10.82253715,4624.5,4624.4,0.07]
[1757888188896,10.49982373,4624.5,4624.4,0.07]
[1757888190469,9.1294278,4624.5,4621.3,0.001]
[1757888190672,0.108,4623.0,4622.5,0.4902]
[1757888190877,5.285,4622.9,4622.5,0.4902]
[1757888191704,0.108,4622.5,4621.9,0.4902]
[1757888192005,3.626,4622.4,4621.9,0.4902]
[1757888192300,3.626,4622.4,4622.0,0.4902]
[1757888192503,3.626,4622.4,4622.1,0.4902]
[1757888195498,3.626,4622.4,4622.1,2.65371426]
[1757888195700,3.626,4622.4,4622.1,0.4902]
[1757888196094,3.626,4622.4,4622.1,2.65371487]
[1757888197214,0.108,4622.1,4622.0,2.16356007]
[1757888197414,0.108,4622.1,4622.0,2.45196007]
[1757888197578,0.108,4622.1,4622.0,2.94216007]
[1757888199129,0.108,4622.1,4622.0,3.38696007]
[1757888204701,0.108,4622.1,4622.0,2.94216007]
[1757888208531,0.108,4622.1,4622.0,3.38696007]
[1757888210081,1.661,4622.9,4622.0,1.77946145]
[1757888210349,3.619,4622.8,4622.5,2.16332106]
[1757888210647,3.619,4622.8,4622.7,0.2884]
[1757888210856,3.619,4622.8,4622.7,0.7786]
[1757888211146,3.74022945,4622.8,4622.7,0.7786]
[1757888211348,0.12122945,4622.8,4622.7,0.7786]
[1757888211551,3.62,4622.8,4622.7,0.7786]
[1757888211755,0.108,4622.7,4622.5,2.16332626]
[1757888212121,0.108,4622.7,4622.5,2.65352626]
[1757888212322,0.108,4622.7,4622.6,0.2884]
[1757888212628,0.108,4622.7,4622.6,0.7786]
[1757888212835,3.727,4622.7,4622.6,0.7786]
[1757888213254,3.727,4622.7,4622.6,3.38668473]
[1757888213453,3.727,4622.7,4622.6,2.94188473]
[1757888213633,3.727,4622.7,4622.6,3.38668473]
[1757888216949,0.12133337,4622.8,4622.7,2.16323793]
[1757888217154,1.661,4622.9,4622.7,2.16323793]
[1757888217155,1.661,4622.9,4622.8,2.16319113]
[1757888217461,5.279,4622.9,4622.8,3.39609113]
[1757888217635,5.40033337,4622.9,4622.8,3.39609113]
[1757888221078,6.17313337,4622.9,4622.2,0.474]
[1757888221379,0.108,4622.4,4622.3,2.36606242]
[1757888221583,4.0244,4622.4,4622.3,2.16341515]
[1757888222154,4.0244,4622.4,4622.1,2.16351874]
[1757888222560,4.0244,4622.4,4622.2,2.16345949]
[1757888222972,4.0244,4622.4,4622.0,2.16454482]
[1757888223177,4.0244,4622.4,4622.0,2.63856325]
[1757888223376,4.0244,4622.4,4622.3,2.16342513]
[1757888223684,4.0244,4622.4,4622.1,2.16348431]
[1757888223988,4.0244,4622.4,4622.2,2.16346339]
[1757888224286,4.0244,4622.4,4622.0,0.475]
[1757888224456,4.0244,4622.4,4622.3,2.16342513]
[1757888224857,4.0244,4622.4,4622.1,2.16348494]
[1757888225056,4.0244,4622.4,4622.0,0.001]
[1757888225285,4.0244,4622.4,4622.0,0.475]
[1757888225686,4.0244,4622.4,4622.3,2.16342513]
[1757888226265,3.725,4622.4,4622.3,2.93332513]
[1757888228168,3.725,4622.4,4622.3,3.39152513]
[1757888229185,3.725,4622.4,4622.3,2.93332513]
[1757888229590,3.725,4622.4,4622.1,2.16348055]
[1757888229803,4.0244,4622.4,4622.1,2.16349708]
[1757888230094,0.4734,4622.3,4622.2,2.16346523]
[1757888230297,0.108,4622.1,4622.0,2.16456555]
[1757888230502,3.722,4622.1,4622.0,2.16456555]
[1757888232576,3.722,4622.1,4622.0,2.93446555]
[1757888232801,3.722,4622.1,4622.0,3.39266555]
[1757888236210,3.722,4622.1,4622.0,2.93446555]
[1757888236821,3.722,4622.1,4622.0,3.39266555]
[1757888237314,0.12156773,4622.6,4622.5,2.16333153]
[1757888237520,3.721,4622.6,4622.2,2.18510646]
[1757888237703,3.721,4622.6,4622.5,2.45923153]
[1757888238021,3.721,4622.6,4622.5,3.39143153]
[1757888238486,0.108,4622.6,4622.5,2.93323153]
[1757888238688,3.721,4622.6,4622.5,4.11960775]
[1757888240185,0.12156773,4622.8,4622.7,2.16323793]
[1757888240386,1.661,4622.9,4622.8,2.16319113]
[1757888240589,5.274,4622.9,4622.8,2.93309113]
[1757888240787,5.5982717,4622.9,4622.8,2.93309113]
[1757888241724,5.5982717,4622.9,4622.8,2.16319113]
[1757888243227,5.5982717,4622.9,4622.8,3.39129113]
[1757888243424,5.5982717,4622.9,4622.8,2.93309113]
[1757888243627,5.8976717,4622.9,4622.8,2.16319113]
[1757888244429,6.3710717,4622.9,4622.8,2.16319113]
[1757888244934,5.8976717,4622.9,4622.8,2.16319113]
[1757888245934,5.8966717,4622.9,4622.8,2.16319113]
[1757888246106,6.3700717,4622.9,4622.8,2.16319113]
[1757888247670,6.37014716,4622.9,4622.8,2.16319113]
[1757888247947,2.28474716,4622.9,4622.8,2.16319113]
[1757888248248,5.5714,4622.9,4622.8,2.16319113]
[1757888248446,5.89574716,4622.9,4622.8,2.16319113]
[1757888248849,5.69304319,4622.9,4622.8,2.16319113]
[1757888249522,2.08204319,4622.9,4622.8,2.16319113]
[1757888249727,5.5714,4622.9,4622.8,2.16319113]
[1757888249947,5.69304319,4622.9,4622.8,2.16319113]
[1757888250154,5.89578797,4622.9,4622.8,2.16319113]
[1757888250315,5.69304319,4622.9,4622.8,2.16319113]
[1757888251579,6.16068828,4622.9,4622.0,0.001]
[1757888251734,2.16347542,4622.2,4622.0,0.001]
[1757888251935,3.612,4622.1,4622.0,0.001]
[1757888252135,5.64942096,4622.1,4622.0,0.001]
[1757888252355,5.77106415,4622.1,4622.0,0.001]
[1757888252768,5.38966415,4622.1,4622.0,0.001]
[1757888253646,7.7557121,4622.1,4622.0,0.001]
[1757888253844,8.13698308,4622.1,4622.0,0.001]
[1757888257957,11.13698308,4622.1,4622.0,0.001]
[1757888258134,11.60288668,4622.1,4622.0,0.001]
[1757888259693,11.13698308,4622.1,4622.0,0.001]
[1757888264292,6.67968308,4622.1,4622.0,0.001]
[1757888264477,7.23504338,4622.1,4622.0,0.001]
[1757888264680,9.39856212,4622.1,4622.0,0.001]
[1757888266476,9.86246212,4622.1,4622.0,0.001]
[1757888271132,10.24386212,4622.1,4622.0,0.001]
[1757888271411,9.86246212,4622.1,4622.0,0.001]
[1757888271590,11.34818768,4622.1,4622.0,0.001]
[1757888273424,10.88428768,4622.1,4622.0,0.001]
[1757888273723,11.34818768,4622.1,4622.0,0.001]
[1757888279300,11.81399246,4622.1,4622.0,0.001]
[1757888280825,11.81384007,4622.1,4622.0,0.001]
[1757888282305,11.34994007,4622.1,4622.0,0.001]
[1757888282821,11.78854007,4622.1,4622.0,0.001]
[1757888283999,11.66717829,4622.1,4622.0,0.001]
[1757888284196,11.78870266,4622.1,4622.0,0.001]
[1757888285721,11.35010266,4622.1,4622.0,0.001]
[1757888285927,12.17010266,4622.1,4622.0,0.001]
[1757888286435,11.78870266,4622.1,4622.0,0.001]
[1757888286809,12.58070266,4622.1,4622.0,0.001]
[1757888287134,12.96210266,4622.1,4622.0,0.001]
[1757888289236,12.58070266,4622.1,4622.0,0.001]
[1757888289444,12.14210266,4622.1,4622.0,0.001]
[1757888290248,13.75917829,4622.1,4622.0,0.001]
[1757888290444,12.58072952,4622.1,4622.0,0.001]
[1757888291842,15.85917517,4622.1,4622.0,0.001]
[1757888293524,16.24057517,4622.1,4622.0,0.001]
[1757888294448,15.85917517,4622.1,4622.0,0.001]
[1757888295450,16.24057517,4622.1,4622.0,0.001]
[1757888297151,39.98644017,4622.1,4622.0,0.001]
[1757888297351,2.95575281,4621.6,4621.5,0.001]
[1757888297557,14.8322789,4621.6,4621.5,0.001]
[1757888297761,16.03888368,4621.6,4621.5,0.001]
[1757888298553,15.60028368,4621.6,4621.5,0.001]
[1757888300162,11.22763803,4621.6,4621.5,1.2669]
[1757888301374,7.61563803,4621.6,4621.5,1.2669]
[1757888301683,10.76183325,4621.6,4621.5,1.2669]
[1757888301860,11.22763803,4621.6,4621.5,1.2669]
[1757888304052,12.62506945,4621.6,4621.5,1.2669]
[1757888304252,9.01306945,4621.6,4621.5,1.2669]
[1757888304552,12.62506945,4621.6,4621.5,1.2669]
[1757888306248,11.22763803,4621.6,4621.5,1.2669]
[1757888308689,11.22763803,4621.6,4621.5,0.8073]
[1757888308902,11.52983803,4621.6,4621.5,0.001]
[1757888309352,11.96863803,4621.6,4621.5,0.001]
[1757888310792,12.76063803,4621.6,4621.5,0.001]
[1757888310958,14.63921401,4621.6,4621.5,0.001]
[1757888311293,14.63904613,4621.6,4621.5,0.001]
[1757888313093,15.22204317,4621.6,4621.5,0.001]
[1757888315396,15.22192702,4621.6,4621.5,0.001]
[1757888315599,14.63904613,4621.6,4621.5,0.001]
[1757888326902,14.6390869,4621.6,4621.5,0.001]
[1757888327108,14.2002869,4621.6,4621.5,0.001]
[1757888327413,14.20028933,4621.6,4621.5,0.001]
[1757888327775,21.29028933,4621.6,4621.5,0.001]
[1757888328504,20.98808933,4621.6,4621.5,0.001]
[1757888329073,20.98808933,4621.6,4621.5,0.3009]
[1757888329273,20.98808933,4621.6,4621.5,0.7532]
[1757888329907,20.98797961,4621.6,4621.5,0.7532]
[1757888330095,21.57071322,4621.6,4621.5,0.7532]
[1757888330404,20.98797961,4621.6,4621.5,0.001]
[1757888330796,21.29691924,4621.6,4621.5,0.001]
[1757888331201,21.73571924,4621.6,4621.5,0.001]
[1757888332322,2.092,4621.4,4621.3,0.001]
[1757888332621,1.3,4621.2,4621.0,0.001]
[1757888332918,30.50215359,4621.1,4621.0,0.001]
[1757888333083,39.65467565,4621.1,4621.0,0.001]
[1757888333404,36.40412774,4621.1,4621.0,0.001]
[1757888333605,35.62761046,4621.1,4621.0,0.001]
[1757888333803,35.35775346,4621.1,4621.0,0.001]
[1757888334304,20.34342246,4621.1,4621.0,0.001]
[1757888334475,36.68414346,4621.1,4621.0,0.001]
[1757888334676,35.15374792,4621.1,4621.0,0.001]
[1757888334895,35.17204792,4621.1,4621.0,0.001]
[1757888335378,37.27434492,4621.1,4621.0,0.001]
[1757888335821,24.65171957,4621.1,4621.0,0.001]